[Event "*** Titled Tuesday Blitz"]
[Site "Chess.com"]
[Date "2020.11.24"]
[Round "9"]
[White "Gevo1990"]
[Black "ChessQueen"]
[Result "1/2-1/2"]
[WhiteElo "2631"]
[BlackElo "2734"]
[TimeControl "180+1"]
[EndTime "12:06:19 PST"]
[Termination "Game drawn by repetition"]

1. e4 {[%clk 0:02:59.8]} 1... c6 {[%clk 0:02:58.7]} 2. d4 {[%clk 0:02:59.3]}
2... d5 {[%clk 0:02:58.5]} 3. e5 {[%clk 0:03:00.2]} 3... c5 {[%clk 0:02:58.6]}
4. Ne2 {[%clk 0:02:57.9]} 4... Nc6 {[%clk 0:02:57.3]} 5. dxc5 {[%clk 0:02:47]}
5... Nxe5 {[%clk 0:02:45.5]} 6. Nbc3 {[%clk 0:02:44]} 6... e6 {[%clk 0:02:45.2]}
7. Be3 {[%clk 0:02:43.5]} 7... Nf6 {[%clk 0:02:44.8]} 8. Ng3 {[%clk 0:02:38.3]}
8... Be7 {[%clk 0:02:35.2]} 9. Be2 {[%clk 0:02:37.3]} 9... O-O {[%clk 0:02:34]}
10. O-O {[%clk 0:02:37.9]} 10... Nc6 {[%clk 0:02:22]} 11. Nb5 {[%clk 0:02:28.6]}
11... e5 {[%clk 0:02:19.8]} 12. c3 {[%clk 0:01:35.9]} 12... a6 {[%clk
0:02:15.9]} 13. Na3 {[%clk 0:01:24.9]} 13... d4 {[%clk 0:02:12.9]} 14. cxd4
{[%clk 0:01:25.8]} 14... exd4 {[%clk 0:02:13.3]} 15. Bg5 {[%clk 0:01:24.8]}
15... Bxc5 {[%clk 0:02:13.2]} 16. Bf3 {[%clk 0:01:19.1]} 16... Ne5 {[%clk
0:01:53.5]} 17. Rc1 {[%clk 0:01:08.1]} 17... Be7 {[%clk 0:01:44.8]} 18. Nc4
{[%clk 0:00:54]} 18... Nxf3+ {[%clk 0:01:32.1]} 19. Qxf3 {[%clk 0:00:53.3]}
19... Be6 {[%clk 0:01:32.4]} 20. Qxb7 {[%clk 0:00:48.6]} 20... Bd5 {[%clk
0:01:09.4]} 21. Qb3 {[%clk 0:00:42.3]} 21... h6 {[%clk 0:01:02.9]} 22. Bxf6
{[%clk 0:00:38.1]} 22... Bxf6 {[%clk 0:01:03.3]} 23. Qd3 {[%clk 0:00:38.5]}
23... Rc8 {[%clk 0:01:00.1]} 24. b3 {[%clk 0:00:37.6]} 24... Ba8 {[%clk
0:00:51.1]} 25. Rfe1 {[%clk 0:00:34]} 25... Bc6 {[%clk 0:00:37.9]} 26. Ne4
{[%clk 0:00:32.3]} 26... Be7 {[%clk 0:00:34.9]} 27. f3 {[%clk 0:00:29.1]} 27...
Bb5 {[%clk 0:00:31.7]} 28. a4 {[%clk 0:00:20.6]} 28... Bc6 {[%clk 0:00:25.7]}
29. Rcd1 {[%clk 0:00:19.8]} 29... Bb4 {[%clk 0:00:24.8]} 30. Re2 {[%clk
0:00:19.1]} 30... f5 {[%clk 0:00:22.2]} 31. Ng3 {[%clk 0:00:18.7]} 31... Qd5
{[%clk 0:00:15.8]} 32. Re5 {[%clk 0:00:17.6]} 32... Qd7 {[%clk 0:00:14.8]} 33.
Rxf5 {[%clk 0:00:17]} 33... Rxf5 {[%clk 0:00:12.8]} 34. Nxf5 {[%clk 0:00:17.5]}
34... Bd5 {[%clk 0:00:09.1]} 35. g4 {[%clk 0:00:10.8]} 35... Bxc4 {[%clk
0:00:08.5]} 36. bxc4 {[%clk 0:00:10.9]} 36... Rd8 {[%clk 0:00:06]} 37. Kg2
{[%clk 0:00:09.9]} 37... Bc3 {[%clk 0:00:06.5]} 38. Qe4 {[%clk 0:00:08.3]} 38...
Re8 {[%clk 0:00:06.5]} 39. Qd5+ {[%clk 0:00:07.5]} 39... Qxd5 {[%clk 0:00:06.6]}
40. cxd5 {[%clk 0:00:08.4]} 40... Rd8 {[%clk 0:00:07]} 41. d6 {[%clk 0:00:07.7]}
41... Kf7 {[%clk 0:00:06.9]} 42. h4 {[%clk 0:00:04.1]} 42... g6 {[%clk
0:00:07.1]} 43. Nxh6+ {[%clk 0:00:03.7]} 43... Kg7 {[%clk 0:00:05.2]} 44. g5
{[%clk 0:00:03.9]} 44... Rxd6 {[%clk 0:00:05.8]} 45. Ng4 {[%clk 0:00:04.8]}
45... d3 {[%clk 0:00:05.4]} 46. Nf2 {[%clk 0:00:03.3]} 46... d2 {[%clk
0:00:05.5]} 47. Ne4 {[%clk 0:00:03.9]} 47... Rd3 {[%clk 0:00:04.6]} 48. Nxc3
{[%clk 0:00:04.4]} 48... Rxc3 {[%clk 0:00:05.2]} 49. Rxd2 {[%clk 0:00:05.3]}
49... Rc4 {[%clk 0:00:05.9]} 50. Rd7+ {[%clk 0:00:05.9]} 50... Kg8 {[%clk
0:00:06.5]} 51. Rd6 {[%clk 0:00:06.2]} 51... Kg7 {[%clk 0:00:04.3]} 52. Rxa6
{[%clk 0:00:05.5]} 52... Rxh4 {[%clk 0:00:04.9]} 53. Kg3 {[%clk 0:00:05.9]}
53... Rb4 {[%clk 0:00:04.1]} 54. Ra7+ {[%clk 0:00:06.5]} 54... Kg8 {[%clk
0:00:04.3]} 55. a5 {[%clk 0:00:06.9]} 55... Rb5 {[%clk 0:00:03.8]} 56. Kg4
{[%clk 0:00:07.2]} 56... Kf8 {[%clk 0:00:03.9]} 57. a6 {[%clk 0:00:06.4]} 57...
Ra5 {[%clk 0:00:02.8]} 58. Ra8+ {[%clk 0:00:05.3]} 58... Kg7 {[%clk 0:00:02.8]}
59. a7 {[%clk 0:00:05.8]} 59... Ra6 {[%clk 0:00:02.3]} 60. f4 {[%clk 0:00:05.9]}
60... Ra5 {[%clk 0:00:02.5]} 61. Kf3 {[%clk 0:00:06.4]} 61... Ra6 {[%clk
0:00:02.7]} 62. Ke3 {[%clk 0:00:07]} 62... Ra3+ {[%clk 0:00:02.9]} 63. Kd4
{[%clk 0:00:07]} 63... Ra4+ {[%clk 0:00:03.3]} 64. Ke5 {[%clk 0:00:05.9]} 64...
Ra5+ {[%clk 0:00:03.6]} 65. Ke6 {[%clk 0:00:06.3]} 65... Ra6+ {[%clk 0:00:04]}
66. Kd7 {[%clk 0:00:05.2]} 66... Ra1 {[%clk 0:00:03.9]} 67. Ke8 {[%clk
0:00:05.4]} 67... Re1+ {[%clk 0:00:03.7]} 68. Kd8 {[%clk 0:00:05.9]} 68... Rd1+
{[%clk 0:00:04]} 69. Kc7 {[%clk 0:00:06.5]} 69... Rc1+ {[%clk 0:00:04.5]} 70.
Kd6 {[%clk 0:00:07]} 70... Rd1+ {[%clk 0:00:04.7]} 71. Ke5 {[%clk 0:00:07.7]}
71... Re1+ {[%clk 0:00:04.9]} 72. Kd4 {[%clk 0:00:08.3]} 72... Rd1+ {[%clk
0:00:05.5]} 73. Kc4 {[%clk 0:00:08.6]} 73... Ra1 {[%clk 0:00:06]} 74. Kb5 {[%clk
0:00:08.5]} 74... Ra2 {[%clk 0:00:05.6]} 75. Kb4 {[%clk 0:00:08.1]} 75... Ra1
{[%clk 0:00:05.7]} 76. Kc3 {[%clk 0:00:08.2]} 76... Ra6 {[%clk 0:00:05.6]} 77.
Kd3 {[%clk 0:00:08.6]} 77... Ra1 {[%clk 0:00:05.7]} 78. Ke3 {[%clk 0:00:09.1]}
78... Ra3+ {[%clk 0:00:05.7]} 79. Ke4 {[%clk 0:00:09.7]} 79... Ra1 {[%clk
0:00:06.1]} 80. Kd5 {[%clk 0:00:09.8]} 80... Rd1+ {[%clk 0:00:06.3]} 81. Ke5
{[%clk 0:00:09.3]} 81... Re1+ {[%clk 0:00:06.6]} 82. Kd4 {[%clk 0:00:09.6]}
82... Rd1+ {[%clk 0:00:07.1]} 83. Ke3 {[%clk 0:00:10]} 83... Ra1 {[%clk
0:00:07.2]} 84. Rd8 {[%clk 0:00:09.3]} 84... Rxa7 {[%clk 0:00:06.9]} 85. Ke4
{[%clk 0:00:10.2]} 85... Ra4+ {[%clk 0:00:06.7]} 86. Ke5 {[%clk 0:00:10]} 86...
Ra5+ {[%clk 0:00:05.5]} 87. Ke6 {[%clk 0:00:10.1]} 87... Rf5 {[%clk 0:00:05.4]}
88. Rd4 {[%clk 0:00:09.4]} 88... Rf8 {[%clk 0:00:03.9]} 89. Ke5 {[%clk
0:00:09.5]} 89... Rf5+ {[%clk 0:00:04.1]} 90. Ke4 {[%clk 0:00:09.5]} 90... Rf7
{[%clk 0:00:04.7]} 91. Rd6 {[%clk 0:00:09.6]} 91... Ra7 {[%clk 0:00:04.8]} 92.
Ke5 {[%clk 0:00:09.4]} 92... Re7+ {[%clk 0:00:04.8]} 93. Re6 {[%clk 0:00:09.9]}
93... Rf7 {[%clk 0:00:05.3]} 94. Rb6 {[%clk 0:00:09]} 94... Rf5+ {[%clk
0:00:05.5]} 95. Ke4 {[%clk 0:00:08.4]} 95... Rf7 {[%clk 0:00:06.1]} 96. Rb5
{[%clk 0:00:08.6]} 96... Re7+ {[%clk 0:00:06.2]} 97. Kf3 {[%clk 0:00:08.8]}
97... Rd7 {[%clk 0:00:06.1]} 98. Ke4 {[%clk 0:00:09.1]} 98... Re7+ {[%clk
0:00:06.5]} 99. Kf3 {[%clk 0:00:09.5]} 99... Rd7 {[%clk 0:00:06.8]} 100. Rb6
{[%clk 0:00:07.7]} 100... Re7 {[%clk 0:00:06.8]} 101. Kg4 {[%clk 0:00:07.7]}
101... Rc7 {[%clk 0:00:06.3]} 102. Rf6 {[%clk 0:00:08]} 102... Rd7 {[%clk
0:00:06.4]} 103. Kf3 {[%clk 0:00:08.5]} 103... Re7 {[%clk 0:00:06.3]} 104. Kf2
{[%clk 0:00:08.8]} 104... Rd7 {[%clk 0:00:06.5]} 105. Ke3 {[%clk 0:00:09.1]}
105... Re7+ {[%clk 0:00:06.6]} 106. Kd4 {[%clk 0:00:09.7]} 106... Rd7+ {[%clk
0:00:06.7]} 107. Ke5 {[%clk 0:00:10.1]} 107... Ra7 {[%clk 0:00:06.6]} 108. Rd6
{[%clk 0:00:09.4]} 108... Re7+ {[%clk 0:00:06.6]} 109. Kd4 {[%clk 0:00:09.7]}
109... Rf7 {[%clk 0:00:06.1]} 110. Ke4 {[%clk 0:00:10]} 110... Re7+ {[%clk
0:00:06.6]} 111. Kd4 {[%clk 0:00:09]} 111... Rf7 {[%clk 0:00:07]} 112. Ke4
{[%clk 0:00:09.2]} 1/2-1/2

[Event "*** Titled Tuesday Blitz"]
[Site "Chess.com"]
[Date "2020.11.24"]
[Round "10"]
[White "Akhayan"]
[Black "PattyCastillo"]
[Result "1-0"]
[WhiteElo "2256"]
[BlackElo "2044"]
[TimeControl "180+1"]
[EndTime "12:08:16 PST"]
[Termination "Akhayan won by resignation"]

1. d4 {[%clk 0:03:00.5]} 1... d5 {[%clk 0:02:59.8]} 2. Nf3 {[%clk 0:02:58.4]}
2... Nf6 {[%clk 0:02:58.9]} 3. c4 {[%clk 0:02:56.7]} 3... c6 {[%clk 0:02:58.9]}
4. e3 {[%clk 0:02:56.8]} 4... e6 {[%clk 0:02:57.9]} 5. Nc3 {[%clk 0:02:57]} 5...
Nbd7 {[%clk 0:02:56.7]} 6. Qc2 {[%clk 0:02:56.7]} 6... Bd6 {[%clk 0:02:55.5]} 7.
g4 {[%clk 0:02:57]} 7... e5 {[%clk 0:02:46.9]} 8. g5 {[%clk 0:02:54.4]} 8... Nh5
{[%clk 0:02:38.9]} 9. cxd5 {[%clk 0:02:51.6]} 9... exd4 {[%clk 0:02:31.9]} 10.
Nxd4 {[%clk 0:02:51]} 10... c5 {[%clk 0:02:17.9]} 11. Nf5 {[%clk 0:02:49.4]}
11... Qxg5 {[%clk 0:02:09.9]} 12. Nxd6+ {[%clk 0:02:46.9]} 1-0

[Event "*** Titled Tuesday Blitz"]
[Site "Chess.com"]
[Date "2020.11.24"]
[Round "10"]
[White "AlexSuv"]
[Black "Kaua18"]
[Result "1-0"]
[WhiteElo "2526"]
[BlackElo "2372"]
[TimeControl "180+1"]
[EndTime "12:09:13 PST"]
[Termination "AlexSuv won by resignation"]

1. d4 {[%clk 0:02:51.5]} 1... Nf6 {[%clk 0:03:00.3]} 2. c4 {[%clk 0:02:48.8]}
2... e6 {[%clk 0:03:00.8]} 3. Nc3 {[%clk 0:02:48.4]} 3... Bb4 {[%clk 0:03:01.2]}
4. e3 {[%clk 0:02:49]} 4... O-O {[%clk 0:03:01.2]} 5. Bd2 {[%clk 0:02:49.7]}
5... d5 {[%clk 0:03:01.5]} 6. Nf3 {[%clk 0:02:49.9]} 6... b6 {[%clk 0:02:56.6]}
7. cxd5 {[%clk 0:02:50]} 7... exd5 {[%clk 0:02:55.9]} 8. Rc1 {[%clk 0:02:50.3]}
8... Bb7 {[%clk 0:02:55.5]} 9. Bd3 {[%clk 0:02:48.6]} 9... Re8 {[%clk
0:02:55.1]} 10. O-O {[%clk 0:02:43.7]} 10... a6 {[%clk 0:02:51.9]} 11. Ne5
{[%clk 0:02:43.1]} 11... c5 {[%clk 0:02:47.9]} 12. a3 {[%clk 0:02:29.1]} 12...
Bxc3 {[%clk 0:02:46.1]} 13. Bxc3 {[%clk 0:02:29.1]} 13... Nbd7 {[%clk 0:02:34]}
14. Nxd7 {[%clk 0:02:27.3]} 14... Qxd7 {[%clk 0:02:34.9]} 15. dxc5 {[%clk
0:02:24.1]} 15... bxc5 {[%clk 0:02:35.8]} 16. Bxf6 {[%clk 0:02:24.3]} 16... gxf6
{[%clk 0:02:36.7]} 17. Rxc5 {[%clk 0:02:17.9]} 17... Re5 {[%clk 0:02:35.3]} 18.
Qc2 {[%clk 0:02:05.5]} 18... Kg7 {[%clk 0:02:22.5]} 19. Rc7 {[%clk 0:02:03.1]}
1-0

[Event "*** Titled Tuesday Blitz"]
[Site "Chess.com"]
[Date "2020.11.24"]
[Round "10"]
[White "Quiet_Desperation"]
[Black "Kretov_Evgenij"]
[Result "1-0"]
[WhiteElo "1730"]
[BlackElo "2421"]
[TimeControl "180+1"]
[EndTime "12:10:32 PST"]
[Termination "Quiet_Desperation won by resignation"]

1. e4 {[%clk 0:02:46.8]} 1... c5 {[%clk 0:03:00.5]} 2. Nf3 {[%clk 0:02:45.5]}
2... Nc6 {[%clk 0:03:00.7]} 3. d4 {[%clk 0:02:45]} 3... cxd4 {[%clk 0:03:01]} 4.
Nxd4 {[%clk 0:02:45.9]} 4... g6 {[%clk 0:03:01.3]} 5. c4 {[%clk 0:02:42.4]} 5...
Nf6 {[%clk 0:03:00.6]} 6. Nc3 {[%clk 0:02:36.9]} 6... d6 {[%clk 0:03:00.5]} 7.
Nc2 {[%clk 0:02:36.8]} 7... Bg7 {[%clk 0:03:00.2]} 8. Be2 {[%clk 0:02:36.5]}
8... O-O {[%clk 0:03:00.4]} 9. O-O {[%clk 0:02:36.7]} 9... Be6 {[%clk
0:03:00.4]} 10. Ne3 {[%clk 0:02:34.8]} 10... Nd7 {[%clk 0:03:00.5]} 11. Ned5
{[%clk 0:02:31.6]} 11... f5 {[%clk 0:02:59.5]} 12. exf5 {[%clk 0:02:08.9]} 12...
gxf5 {[%clk 0:02:59.1]} 13. Re1 {[%clk 0:02:08.3]} 13... Bf7 {[%clk 0:02:58.7]}
14. Bg5 {[%clk 0:02:02.8]} 14... Re8 {[%clk 0:02:55.8]} 15. Bh5 {[%clk 0:01:59]}
15... Bg6 {[%clk 0:02:54.1]} 16. Bxg6 {[%clk 0:01:55.9]} 16... hxg6 {[%clk
0:02:53.5]} 17. Qe2 {[%clk 0:01:42.6]} 17... Nde5 {[%clk 0:02:46.9]} 18. f4
{[%clk 0:01:39.1]} 18... Ng4 {[%clk 0:02:41.2]} 19. Qe6+ {[%clk 0:01:36.6]}
19... Kh7 {[%clk 0:02:40.5]} 20. h3 {[%clk 0:01:18.6]} 20... Nd4 {[%clk
0:02:39.2]} 21. Qf7 {[%clk 0:01:14]} 21... Nh6 {[%clk 0:02:29.6]} 22. Bxh6
{[%clk 0:01:10.3]} 22... Kxh6 {[%clk 0:02:29.8]} 23. Nxe7 {[%clk 0:01:02.2]}
23... Rxe7 {[%clk 0:02:28.8]} 24. Rxe7 {[%clk 0:01:02]} 24... Qh8 {[%clk
0:02:27.6]} 25. Rd1 {[%clk 0:00:52.4]} 25... Rf8 {[%clk 0:02:26.1]} 26. Qxg7+
{[%clk 0:00:49.6]} 26... Qxg7 {[%clk 0:02:25.2]} 27. Rxg7 {[%clk 0:00:50.5]} 1-0

[Event "*** Titled Tuesday Blitz"]
[Site "Chess.com"]
[Date "2020.11.24"]
[Round "10"]
[White "Sinquefield"]
[Black "Gevo1990"]
[Result "0-1"]
[WhiteElo "2481"]
[BlackElo "2641"]
[TimeControl "180+1"]
[EndTime "12:10:38 PST"]
[Termination "Gevo1990 won by checkmate"]

1. e4 {[%clk 0:03:00.9]} 1... e5 {[%clk 0:02:59.2]} 2. Nf3 {[%clk 0:02:56.9]}
2... Nc6 {[%clk 0:02:59.5]} 3. d4 {[%clk 0:02:57.1]} 3... exd4 {[%clk
0:02:59.4]} 4. Bc4 {[%clk 0:02:57.4]} 4... Nf6 {[%clk 0:02:59]} 5. O-O {[%clk
0:02:57.6]} 5... Nxe4 {[%clk 0:02:58.7]} 6. Re1 {[%clk 0:02:57.8]} 6... d5
{[%clk 0:02:59.1]} 7. Bxd5 {[%clk 0:02:57.7]} 7... Qxd5 {[%clk 0:03:00]} 8. Nc3
{[%clk 0:02:53.7]} 8... Qa5 {[%clk 0:03:00.5]} 9. Nxe4 {[%clk 0:02:52.9]} 9...
Be6 {[%clk 0:03:01]} 10. Neg5 {[%clk 0:02:52.8]} 10... O-O-O {[%clk 0:03:00.8]}
11. Nxe6 {[%clk 0:02:53.4]} 11... fxe6 {[%clk 0:03:01]} 12. Rxe6 {[%clk
0:02:53.8]} 12... Qd5 {[%clk 0:03:01.4]} 13. Qe2 {[%clk 0:02:50.6]} 13... Bd6
{[%clk 0:03:00.8]} 14. Bg5 {[%clk 0:02:48.6]} 14... Rdf8 {[%clk 0:02:51.8]} 15.
Bh4 {[%clk 0:02:48.7]} 15... d3 {[%clk 0:02:13]} 16. cxd3 {[%clk 0:02:43.2]}
16... Rxf3 {[%clk 0:02:05.4]} 17. gxf3 {[%clk 0:02:41.6]} 17... Nd4 {[%clk
0:02:05.1]} 18. Re8+ {[%clk 0:02:41]} 18... Kd7 {[%clk 0:02:05.2]} 19. Re7+
{[%clk 0:02:33.8]} 19... Bxe7 {[%clk 0:02:02.5]} 20. Qxe7+ {[%clk 0:02:33.6]}
20... Kc8 {[%clk 0:02:03.4]} 21. Bg3 {[%clk 0:02:27.3]} 21... Nxf3+ {[%clk
0:02:00.1]} 22. Kf1 {[%clk 0:02:27.4]} 22... Qc6 {[%clk 0:01:58.7]} 23. Qe3
{[%clk 0:01:28.7]} 23... Re8 {[%clk 0:01:53.4]} 24. Qxa7 {[%clk 0:01:21.1]}
24... Nxh2+ {[%clk 0:01:53.4]} 25. Bxh2 {[%clk 0:01:16.5]} 25... Qh1+ {[%clk
0:01:52.6]} 26. Bg1 {[%clk 0:01:16.8]} 26... Qh3# {[%clk 0:01:53.5]} 0-1

[Event "*** Titled Tuesday Blitz"]
[Site "Chess.com"]
[Date "2020.11.24"]
[Round "10"]
[White "yourstrulyme"]
[Black "Geller_Jakov"]
[Result "1-0"]
[WhiteElo "2493"]
[BlackElo "2573"]
[TimeControl "180+1"]
[EndTime "12:10:45 PST"]
[Termination "yourstrulyme won by resignation"]

1. d4 {[%clk 0:03:00.9]} 1... d5 {[%clk 0:02:59.8]} 2. Bf4 {[%clk 0:02:59.8]}
2... Nf6 {[%clk 0:02:57.8]} 3. e3 {[%clk 0:03:00.1]} 3... e6 {[%clk 0:02:58]} 4.
Nf3 {[%clk 0:02:59.6]} 4... Bd6 {[%clk 0:02:58.5]} 5. Bg3 {[%clk 0:02:58.9]}
5... c5 {[%clk 0:02:58.4]} 6. Bb5+ {[%clk 0:02:57.9]} 6... Nc6 {[%clk
0:02:54.6]} 7. c3 {[%clk 0:02:54.8]} 7... O-O {[%clk 0:02:53.3]} 8. Nbd2 {[%clk
0:02:52.5]} 8... h6 {[%clk 0:02:31.8]} 9. Bxc6 {[%clk 0:02:49.1]} 9... bxc6
{[%clk 0:02:31.5]} 10. Qa4 {[%clk 0:02:49.7]} 10... Bb7 {[%clk 0:02:23.7]} 11.
Bxd6 {[%clk 0:02:47.9]} 11... Qxd6 {[%clk 0:02:23.2]} 12. Qa3 {[%clk 0:02:48.8]}
12... Nd7 {[%clk 0:02:20.7]} 13. Nb3 {[%clk 0:02:47.8]} 13... Ba6 {[%clk
0:02:18.8]} 14. Qxa6 {[%clk 0:02:45.6]} 14... c4 {[%clk 0:02:17.5]} 15. Na5
{[%clk 0:02:26.7]} 15... Rfb8 {[%clk 0:02:13.1]} 16. Qxc6 {[%clk 0:02:16.7]}
16... Qe7 {[%clk 0:02:09]} 17. O-O-O {[%clk 0:02:09.8]} 17... Rb6 {[%clk
0:02:02.5]} 18. Qa4 {[%clk 0:02:09.5]} 18... Ra6 {[%clk 0:02:01.5]} 19. Nc6
{[%clk 0:01:58.9]} 19... Rxa4 {[%clk 0:01:39]} 20. Nxe7+ {[%clk 0:01:58.8]}
20... Kf8 {[%clk 0:01:39.7]} 21. Nc6 {[%clk 0:01:59]} 21... f6 {[%clk
0:01:40.2]} 22. a3 {[%clk 0:01:40.3]} 22... a5 {[%clk 0:01:37.3]} 23. Kc2 {[%clk
0:01:38.4]} 23... Ra6 {[%clk 0:01:35.7]} 24. Nd8 {[%clk 0:01:35]} 24... Ke7
{[%clk 0:01:35.5]} 25. Nb7 {[%clk 0:01:34.5]} 25... Rb6 {[%clk 0:01:31.5]} 26.
Nc5 {[%clk 0:01:34.4]} 26... Nxc5 {[%clk 0:01:31.8]} 27. dxc5 {[%clk 0:01:34.5]}
1-0

[Event "*** Titled Tuesday Blitz"]
[Site "Chess.com"]
[Date "2020.11.24"]
[Round "10"]
[White "swimmerchess"]
[Black "VerdeNotte"]
[Result "0-1"]
[WhiteElo "2796"]
[BlackElo "2911"]
[TimeControl "180+1"]
[EndTime "12:10:49 PST"]
[Termination "VerdeNotte won by resignation"]

1. e4 {[%clk 0:03:00.8]} 1... e5 {[%clk 0:02:59]} 2. Nf3 {[%clk 0:03:00.8]} 2...
Nc6 {[%clk 0:02:59.4]} 3. Bb5 {[%clk 0:03:00.7]} 3... g6 {[%clk 0:02:59.6]} 4.
c3 {[%clk 0:03:00.3]} 4... d6 {[%clk 0:02:58.9]} 5. d4 {[%clk 0:03:00]} 5... Bd7
{[%clk 0:02:59.3]} 6. O-O {[%clk 0:02:59.2]} 6... Bg7 {[%clk 0:02:59.4]} 7. Re1
{[%clk 0:02:59.2]} 7... Nf6 {[%clk 0:02:59.2]} 8. Nbd2 {[%clk 0:02:55.2]} 8...
O-O {[%clk 0:02:58.1]} 9. Ba4 {[%clk 0:02:54.9]} 9... Kh8 {[%clk 0:02:50.1]} 10.
Bxc6 {[%clk 0:02:13.3]} 10... Bxc6 {[%clk 0:02:50.1]} 11. dxe5 {[%clk
0:02:13.5]} 11... dxe5 {[%clk 0:02:45.9]} 12. Nxe5 {[%clk 0:02:14.4]} 12... Bxe4
{[%clk 0:02:44]} 13. Qb3 {[%clk 0:01:27.4]} 13... Bd5 {[%clk 0:02:31.3]} 14. c4
{[%clk 0:01:27.4]} 14... Be6 {[%clk 0:02:30]} 15. Qxb7 {[%clk 0:01:26.1]} 15...
Ng4 {[%clk 0:02:19.7]} 16. Nxg4 {[%clk 0:01:19.7]} 16... Bxg4 {[%clk 0:02:20.6]}
17. Nb3 {[%clk 0:01:19.8]} 17... a5 {[%clk 0:02:12.2]} 18. Bf4 {[%clk 0:01:08]}
18... a4 {[%clk 0:02:11.4]} 19. Nc5 {[%clk 0:01:05.2]} 19... a3 {[%clk
0:02:10.4]} 20. bxa3 {[%clk 0:00:55.1]} 20... Bxa1 {[%clk 0:02:07.3]} 21. Rxa1
{[%clk 0:00:56]} 21... Qd4 {[%clk 0:02:05.1]} 0-1

[Event "*** Titled Tuesday Blitz"]
[Site "Chess.com"]
[Date "2020.11.24"]
[Round "10"]
[White "halldorgretar"]
[Black "FMAntonio"]
[Result "0-1"]
[WhiteElo "2167"]
[BlackElo "2338"]
[TimeControl "180+1"]
[EndTime "12:10:56 PST"]
[Termination "FMAntonio won on time"]

1. d4 {[%clk 0:02:41]} 1... Nf6 {[%clk 0:02:59]} 2. c4 {[%clk 0:02:40.3]} 2...
e6 {[%clk 0:02:59.1]} 3. Nf3 {[%clk 0:02:39.8]} 3... d5 {[%clk 0:02:58.9]} 4. g3
{[%clk 0:02:39.4]} 4... dxc4 {[%clk 0:02:57.3]} 5. Bg2 {[%clk 0:02:39.1]} 5...
c5 {[%clk 0:02:57.6]} 6. O-O {[%clk 0:02:32.1]} 6... Nc6 {[%clk 0:02:57.1]} 7.
dxc5 {[%clk 0:02:14.8]} 7... Qxd1 {[%clk 0:02:55.9]} 8. Rxd1 {[%clk 0:02:13.5]}
8... Bxc5 {[%clk 0:02:56.8]} 9. Nbd2 {[%clk 0:02:09.8]} 9... c3 {[%clk
0:02:57.1]} 10. bxc3 {[%clk 0:02:06.9]} 10... O-O {[%clk 0:02:56.2]} 11. Nb3
{[%clk 0:02:04.9]} 11... Be7 {[%clk 0:02:56.2]} 12. Bf4 {[%clk 0:01:59.7]} 12...
Bd7 {[%clk 0:02:54.9]} 13. Ne5 {[%clk 0:01:52.4]} 13... Nxe5 {[%clk 0:02:53.2]}
14. Bxe5 {[%clk 0:01:51.6]} 14... Bc6 {[%clk 0:02:50.7]} 15. Bxc6 {[%clk
0:01:50.4]} 15... bxc6 {[%clk 0:02:51.6]} 16. Na5 {[%clk 0:01:23.7]} 16... Rac8
{[%clk 0:02:46.5]} 17. Rab1 {[%clk 0:01:13]} 17... Nd5 {[%clk 0:02:40.4]} 18.
Rb7 {[%clk 0:01:02.6]} 18... Bc5 {[%clk 0:02:40.6]} 19. c4 {[%clk 0:00:32.9]}
19... Nb6 {[%clk 0:02:36.2]} 20. Bd6 {[%clk 0:00:28.7]} 20... Rfd8 {[%clk
0:02:36]} 0-1

[Event "*** Titled Tuesday Blitz"]
[Site "Chess.com"]
[Date "2020.11.24"]
[Round "10"]
[White "WiktoriaPOL"]
[Black "CM_rui"]
[Result "0-1"]
[WhiteElo "2103"]
[BlackElo "2367"]
[TimeControl "180+1"]
[EndTime "12:11:15 PST"]
[Termination "CM_rui won by checkmate"]

1. c4 {[%clk 0:03:00.9]} 1... Nf6 {[%clk 0:02:59.1]} 2. Nc3 {[%clk 0:03:00.3]}
2... e6 {[%clk 0:02:59.3]} 3. e4 {[%clk 0:02:59.5]} 3... d5 {[%clk 0:02:59.8]}
4. e5 {[%clk 0:02:58.7]} 4... d4 {[%clk 0:02:59.6]} 5. exf6 {[%clk 0:02:58.2]}
5... dxc3 {[%clk 0:02:59.5]} 6. bxc3 {[%clk 0:02:59.1]} 6... Qxf6 {[%clk
0:02:58.3]} 7. Nf3 {[%clk 0:02:58]} 7... c5 {[%clk 0:02:53]} 8. d4 {[%clk
0:02:57.1]} 8... Nc6 {[%clk 0:02:49.9]} 9. Bg5 {[%clk 0:02:53.8]} 9... Qg6
{[%clk 0:02:46.2]} 10. Bd3 {[%clk 0:02:52.3]} 10... Qh5 {[%clk 0:02:35.5]} 11.
h3 {[%clk 0:02:48.5]} 11... f6 {[%clk 0:02:25.9]} 12. g4 {[%clk 0:02:45.7]}
12... Qf7 {[%clk 0:02:24.1]} 13. Bf4 {[%clk 0:02:43.6]} 13... Be7 {[%clk
0:02:11.7]} 14. Qc2 {[%clk 0:02:37]} 14... Bd7 {[%clk 0:02:00.4]} 15. Bxh7
{[%clk 0:02:33.9]} 15... f5 {[%clk 0:01:46]} 16. gxf5 {[%clk 0:02:27.3]} 16...
Rxh7 {[%clk 0:01:25.2]} 17. fxe6 {[%clk 0:02:26.1]} 17... Qxe6+ {[%clk
0:01:19.1]} 18. Kd2 {[%clk 0:02:21.6]} 18... Qf5 {[%clk 0:01:12]} 19. Qxf5
{[%clk 0:02:15.8]} 19... Bxf5 {[%clk 0:01:12.9]} 20. d5 {[%clk 0:02:15.7]} 20...
Na5 {[%clk 0:01:10.7]} 21. Ne5 {[%clk 0:02:10.7]} 21... Bf6 {[%clk 0:01:00.1]}
22. Rae1 {[%clk 0:02:07.2]} 22... O-O-O {[%clk 0:00:58.1]} 23. Nf7 {[%clk
0:01:59.9]} 23... Nxc4+ {[%clk 0:00:55.9]} 24. Kc1 {[%clk 0:01:56.8]} 24... Rxd5
{[%clk 0:00:49.9]} 25. Re8+ {[%clk 0:01:53.6]} 25... Kd7 {[%clk 0:00:50.1]} 26.
Rhe1 {[%clk 0:01:50.5]} 26... Rxh3 {[%clk 0:00:44.3]} 27. Bg5 {[%clk 0:01:49.7]}
27... Rxc3# {[%clk 0:00:43.1]} 0-1

[Event "*** Titled Tuesday Blitz"]
[Site "Chess.com"]
[Date "2020.11.24"]
[Round "10"]
[White "EdmundPlayer"]
[Black "monalize"]
[Result "0-1"]
[WhiteElo "2166"]
[BlackElo "2357"]
[TimeControl "180+1"]
[EndTime "12:11:25 PST"]
[Termination "monalize won by checkmate"]

1. e4 {[%clk 0:03:00.9]} 1... Nf6 {[%clk 0:02:59.9]} 2. e5 {[%clk 0:03:00.3]}
2... Nd5 {[%clk 0:02:59.9]} 3. d4 {[%clk 0:03:01.1]} 3... d6 {[%clk 0:03:00.1]}
4. c4 {[%clk 0:03:01.6]} 4... Nb6 {[%clk 0:02:59.7]} 5. f4 {[%clk 0:03:02.5]}
5... Bf5 {[%clk 0:02:55.3]} 6. Nc3 {[%clk 0:02:58.9]} 6... e6 {[%clk 0:02:53.5]}
7. Be3 {[%clk 0:02:50.2]} 7... dxe5 {[%clk 0:02:53.3]} 8. fxe5 {[%clk
0:02:49.2]} 8... Ke7 {[%clk 0:02:53.5]} 9. g4 {[%clk 0:02:19.6]} 9... Bg6 {[%clk
0:02:52.8]} 10. Qf3 {[%clk 0:02:19.7]} 10... Nc6 {[%clk 0:02:49.3]} 11. Bg5+
{[%clk 0:02:18.9]} 11... f6 {[%clk 0:02:34.4]} 12. exf6+ {[%clk 0:02:17.3]}
12... Kd7 {[%clk 0:02:34.5]} 13. fxg7 {[%clk 0:02:14.3]} 13... Qxg5 {[%clk
0:02:33]} 14. gxh8=Q {[%clk 0:02:13.6]} 14... Bh6 {[%clk 0:02:30.9]} 15. Rd1
{[%clk 0:00:24.3]} 15... Rxh8 {[%clk 0:02:27.7]} 16. d5 {[%clk 0:00:24.8]} 16...
Ne5 {[%clk 0:02:14.1]} 17. dxe6+ {[%clk 0:00:24.9]} 17... Kc8 {[%clk 0:02:11.9]}
18. Qe2 {[%clk 0:00:19.6]} 18... Rf8 {[%clk 0:02:05.6]} 19. h4 {[%clk
0:00:19.6]} 19... Qf4 {[%clk 0:02:04.4]} 20. e7 {[%clk 0:00:05.6]} 20... Qg3+
{[%clk 0:02:01.4]} 21. Qf2 {[%clk 0:00:06.1]} 21... Qxf2# {[%clk 0:02:00.2]} 0-1